Workbook

Sheet Table of Contents
C3: Sheet Tab | D3: Description | E3: Author
B4: 1 | C4: Table of Contents | D4: This Page | E4: Winston Churchill
B5: 2 | C5: Basic Exercise | D5: Exercise with Titles and Instructions | E5: Charles DeGaul
B6: 3 | C6: Instructions | D6: Summary of Key Points in Exercise | E6: Pabblo Picasso
B7: 4 | C7: Exercise with Minimum | D7: Include Minimum Cash Balance | E7: Michael Jackson
B8: 5 | C8: Exercise without Titles | D8: Exercise with Only Inputs | E8: Nelson Mandella
B10: File Name: | D10: C:\A Files\Courses\Course Materials\1 Templates and Exercises Corporate Model\Exercises\Exercise 2 - Simple Corporate Model.xls
B12: Colour Codes
B14: Date | D14: 2009-03-11
B18: Note: Table of Contents Created with fm.xls File

Sheet Basic Exercise
A1: Table of Contents
F2: Verification
E4: TRUE
A5: Year | F5: 0 | G5: 1 | H5: 2 | I5: 3 | J5: 4 | K5: 5 | L5: 6 | M5: 6
A8: Assumptions
B9: Operating
C10: EBITDA | F10: 1 | G10: =INDEX(G11:G13,$F$10) -> 200 | H10: 300 | I10: 400 | J10: 450 | K10: 450 | L10: 450 | M10: =INDEX(M11:M13,$F$10) -> 450
D11: Base Case | G11: 200 | H11: 300 | I11: 400 | J11: 450 | K11: 450 | L11: 450 | M11: 450
D12: Low Case | G12: 150 | H12: 200 | I12: 300 | J12: 300 | K12: 300 | L12: 300 | M12: 300
D13: High Case | G13: 200 | H13: 350 | I13: 500 | J13: 650 | K13: 650 | L13: 650 | M13: 650
C14: Depreciation Rate | G14: 0.1 | H14: 0.1 | I14: 0.1 | J14: 0.1 | K14: 0.1 | L14: 0.1 | M14: 0.1
C15: Capital Expenditures | G15: 400 | H15: 400 | I15: 200 | J15: 50 | K15: 50 | L15: 50 | M15: 50
B17: Financing
C18: Interest Income Rate | G18: 0.03 | H18: 0.035 | I18: 0.04 | J18: 0.04 | K18: 0.04 | L18: 0.04 | M18: 0.04
C19: Interest Expense Rate | G19: 0.05 | H19: 0.055 | I19: 0.06 | J19: 0.06 | K19: 0.06 | L19: 0.06 | M19: 0.06
C20: Dividend Payout Ratio | G20: 0.5 | H20: 0.5 | I20: 0.5 | J20: 0.5 | K20: 0.5 | L20: 0.5 | M20: 0.5
B22: Long-Term Debt
C23: Scheduled Repayment | G23: 60 | H23: 60 | I23: 60 | J23: 60 | K23: 60
C24: Interest Rate on Long-term Debt | G24: 0.065 | H24: 0.065 | I24: 0.065 | J24: 0.065 | K24: 0.065
A26: Initial Balance Sheet
B27: Cash | F27: 0
B28: Plant Property and Equipment | F28: 1300
B29: Accumulated Depreciation | F29: 300
C30: Total Assets | F30: =F27+F28-F29 -> 1000
B32: Long-Term Debt | F32: 300
B33: Short-Term Debt | F33: 100
B34: Equity | F34: 600
C35: Total Liabilities and Capital | F35: =SUM(F32:F34) -> 1000
A37: Fixed Assets
B38: Plant Balance
C39: Opening Balance | E39: Opening = Prior Closing | G39: =F41 -> 1300 | H39: =G41 -> 1700 | I39: 2100 | J39: 2300 | K39: 2350 | L39: 2400 | M39: 2450
C40: Add: Capital Expenditure | E40: From Input | G40: =G15 -> 400 | H40: =H15 -> 400 | I40: 200 | J40: 50 | K40: 50 | L40: 50 | M40: 50
C41: Closing Balance | E41: Initial from B/S; Later Sum | F41: =F28 -> 1300 | G41: =SUM(G39:G40) -> 1700 | H41: =SUM(H39:H40) -> 2100 | I41: 2300 | J41: 2350 | K41: 2400 | L41: 2450 | M41: 2500
B43: Depreciation Rate | E43: From Input | G43: =G14 -> 0.1 | H43: =H14 -> 0.1 | I43: 0.1 | J43: 0.1 | K43: 0.1 | L43: 0.1 | M43: 0.1
B44: Depreciation Expense (Ending Balance) | E44: Closing x Depreciation Rate | G44: =G43*G39 -> 130 | H44: =H43*H39 -> 170 | I44: 210 | J44: 230 | K44: 235 | L44: 240 | M44: 245
B46: Accumulated Depreciation
C47: Opening Balance | G47: =F49 -> 300 | H47: =G49 -> 430 | I47: 600 | J47: 810 | K47: 1040 | L47: 1275 | M47: 1515
C48: Add: Depreciation Expense | G48: =G44 -> 130 | H48: =H44 -> 170 | I48: 210 | J48: 230 | K48: 235 | L48: 240 | M48: 245
C49: Closing Balance | F49: =F29 -> 300 | G49: =SUM(G47:G48) -> 430 | H49: =SUM(H47:H48) -> 600 | I49: 810 | J49: 1040 | K49: 1275 | L49: 1515 | M49: 1760
A51: Debt Analysis
B52: Debt Balance
C53: Opening Balance | E53: Opening = Prior Closing | G53: =F55 -> 300 | H53: =G55 -> 240 | I53: 180 | J53: 120 | K53: 60 | L53: 0 | M53: 0
C54: Less: Repayments | E54: From Input | G54: =G23 -> 60 | H54: =H23 -> 60 | I54: 60 | J54: 60 | K54: 60 | L54: 0 | M54: 0
C55: Closing Balance | E55: Initial from B/S; Later Sum | F55: =F32 -> 300 | G55: =G53-G54 -> 240 | H55: =H53-H54 -> 180 | I55: 120 | J55: 60 | K55: 0 | L55: 0 | M55: 0
B57: Interest Rate on Long-term Debt | E57: From Input | G57: =G24 -> 0.065 | H57: =H24 -> 0.065 | I57: 0.065 | J57: 0.065 | K57: 0.065 | L57: 0 | M57: 0
B58: Long-term Interest Expense | E58: Opening x Rate | G58: =G57*G53 -> 19.5 | H58: =H57*H53 -> 15.6 | I58: 11.7 | J58: 7.8 | K58: 3.9 | L58: 0 | M58: 0
A60: Cash LESS Short-term Debt Balance
B61: Opening Balance | E61: Prior Balance | G61: =F63 -> -100 | H61: =G63 -> -407.25 | I61: -651.249375 | J61: -631.6368563 | K61: -424.4859619 | L61: -206.6705408 | M61: 82.12934298
B62: Add: Net Cash Flow | E62: From Cash Flow Statement | G62: =G91 -> -307.25 | H62: =H91 -> -243.999375 | I62: 19.61251875 | J62: 207.1508943 | K62: 217.8154211 | L62: 288.7998838 | M62: 299.1425869
B63: Closing Balance | E63: Opeining + Cash Flow | F63: =F27-F33 -> -100 | G63: =SUM(G61:G62) -> -407.25 | H63: =SUM(H61:H62) -> -651.249375 | I63: -631.6368563 | J63: -424.4859619 | K63: -206.6705408 | L63: 82.12934298 | M63: 381.2719298
B65: Cash Balance | E65: Max of Closing Balance or Zero | F65: =F27 -> 0 | G65: =MAX(G63,0) -> 0 | H65: =MAX(H63,0) -> 0 | I65: 0 | J65: 0 | K65: 0 | L65: 82.12934298 | M65: 381.2719298
B66: Interest Income Rate | G66: =G18 -> 0.03 | H66: =H18 -> 0.035 | I66: 0.04 | J66: 0.04 | K66: 0.04 | L66: 0.04 | M66: 0.04
B67: Interest Income | E67: Average of Cash x Rate | G67: =F65*G66 -> 0 | H67: =G65*H66 -> 0 | I67: 0 | J67: 0 | K67: 0 | L67: 0 | M67: 3.285173719
B69: Short-term Debt Balance | E69: Max of Neg Closing Balance or Zero | F69: =F33 -> 100 | G69: =MAX(-G63,0) -> 407.25 | H69: =MAX(-H63,0) -> 651.249375 | I69: 631.6368563 | J69: 424.4859619 | K69: 206.6705408 | L69: 0 | M69: 0
B70: Interest Expense Rate | G70: =G19 -> 0.05 | H70: =H19 -> 0.055 | I70: 0.06 | J70: 0.06 | K70: 0.06 | L70: 0.06 | M70: 0.06
B71: Short-term Interest Expense | E71: Average of Debt x Rate | G71: =G70*F69 -> 5 | H71: =H70*G69 -> 22.39875 | I71: 39.0749625 | J71: 37.89821138 | K71: 25.46915772 | L71: 12.40023245 | M71: 0
A74: Income Statement
B75: EBITDA | E75: From Above, Sensitivity | G75: =G10 -> 200 | H75: =H10 -> 300 | I75: 400 | J75: 450 | K75: 450 | L75: 450 | M75: 450
B76: Less: Depreciation | E76: Depreciation Analysis | G76: =G44 -> 130 | H76: =H44 -> 170 | I76: 210 | J76: 230 | K76: 235 | L76: 240 | M76: 245
B77: EBIT | E77: EBITDA - Depreciation | G77: =G75-G76 -> 70 | H77: =H75-H76 -> 130 | I77: 190 | J77: 220 | K77: 215 | L77: 210 | M77: 205
B78: Less: Short-term Interest | E78: End of Model, Leave until Done | G78: =G71 -> 5 | H78: =H71 -> 22.39875 | I78: 39.0749625 | J78: 37.89821138 | K78: 25.46915772 | L78: 12.40023245 | M78: 0
B79: Less: Long-term Interest | E79: Debt Analysis Above | G79: =G58 -> 19.5 | H79: =H58 -> 15.6 | I79: 11.7 | J79: 7.8 | K79: 3.9 | L79: 0 | M79: 0
B80: Plus: Interest Income | E80: End of Model, Leave until Done | G80: =G67 -> 0 | H80: =H67 -> 0 | I80: 0 | J80: 0 | K80: 0 | L80: 0 | M80: 3.285173719
C81: Net Income | E81: EBIT - Interest + Interest Income | G81: =G77-G78-G79+G80 -> 45.5 | H81: =H77-H78-H79+H80 -> 92.00125 | I81: 139.2250375 | J81: 174.3017886 | K81: 185.6308423 | L81: 197.5997676 | M81: 208.2851737
A83: Cash Flow Statement
B84: Net Income | E84: From Income Statement | G84: =G81 -> 45.5 | H84: =H81 -> 92.00125 | I84: 139.2250375 | J84: 174.3017886 | K84: 185.6308423 | L84: 197.5997676 | M84: 208.2851737
B85: Add: Depreciation Expense | E85: From Income Statement | G85: =G76 -> 130 | H85: =H76 -> 170 | I85: 210 | J85: 230 | K85: 235 | L85: 240 | M85: 245
B86: Cash from Operations | E86: Net Income + Depreciation | G86: =G84+G85 -> 175.5 | H86: =H84+H85 -> 262.00125 | I86: 349.2250375 | J86: 404.3017886 | K86: 420.6308423 | L86: 437.5997676 | M86: 453.2851737
B87: Less: Capital Expenditures | E87: From Above | G87: =G40 -> 400 | H87: =H40 -> 400 | I87: 200 | J87: 50 | K87: 50 | L87: 50 | M87: 50
B88: Cash Before Financing | E88: Operations - Capital Expenditures | G88: =G86-G87 -> -224.5 | H88: =H86-H87 -> -137.99875 | I88: 149.2250375 | J88: 354.3017886 | K88: 370.6308423 | L88: 387.5997676 | M88: 403.2851737
B89: Less: Debt Repayment | E89: From Above | G89: =G54 -> 60 | H89: =H54 -> 60 | I89: 60 | J89: 60 | K89: 60 | L89: 0 | M89: 0
B90: Less: Dividends | E90: Dividend Payout x Net Income | G90: =MAX(G81*G20,0) -> 22.75 | H90: =MAX(H81*H20,0) -> 46.000625 | I90: 69.61251875 | J90: 87.15089431 | K90: 92.81542114 | L90: 98.79988378 | M90: 104.1425869
C91: Net Cash Flow | E91: Cash Flow b/4 fin - Repayment - Div | G91: =G88-G89-G90 -> -307.25 | H91: =H88-H89-H90 -> -243.999375 | I91: 19.61251875 | J91: 207.1508943 | K91: 217.8154211 | L91: 288.7998838 | M91: 299.1425869
A94: Balance Sheet and Common Equity
B95: Common Equity Balance
C96: Openining Balance | G96: =F99 -> 600 | H96: =G99 -> 622.75 | I96: 668.750625 | J96: 738.3631437 | K96: 825.5140381 | L96: 918.3294592 | M96: 1017.129343
C97: Add: Net Income | G97: =G81 -> 45.5 | H97: =H81 -> 92.00125 | I97: 139.2250375 | J97: 174.3017886 | K97: 185.6308423 | L97: 197.5997676 | M97: 208.2851737
C98: Less: Dividends | G98: =G90 -> 22.75 | H98: =H90 -> 46.000625 | I98: 69.61251875 | J98: 87.15089431 | K98: 92.81542114 | L98: 98.79988378 | M98: 104.1425869
C99: Closing Balance | F99: =F34 -> 600 | G99: =G96+G97-G98 -> 622.75 | H99: =H96+H97-H98 -> 668.750625 | I99: 738.3631437 | J99: 825.5140381 | K99: 918.3294592 | L99: 1017.129343 | M99: 1121.27193
B101: Assets
C102: Cash | E102: From End of Model, Leave until Done | F102: =F65 -> 0 | G102: =G65 -> 0 | H102: 0 | I102: 0 | J102: 0 | K102: 0 | L102: 82.12934298 | M102: 381.2719298
C103: Plant Property and Equipment | E103: From Plant Balance | F103: =F41 -> 1300 | G103: =G41 -> 1700 | H103: 2100 | I103: 2300 | J103: 2350 | K103: 2400 | L103: 2450 | M103: 2500
C104: Less: Accumulated Depreciation | E104: Prior Balance + Depreciation | F104: =-F49 -> -300 | G104: =-G49 -> -430 | H104: -600 | I104: -810 | J104: -1040 | K104: -1275 | L104: -1515 | M104: -1760
D105: Total Assets | E105: Cash + Plant - Acc Dep | F105: =SUM(F102:F104) -> 1000 | G105: =SUM(G102:G104) -> 1270 | H105: 1500 | I105: 1490 | J105: 1310 | K105: 1125 | L105: 1017.129343 | M105: 1121.27193
B107: Liabilites and Equity
C108: Long-Term Debt | E108: From Debt Balance Above | F108: =F55 -> 300 | G108: =G55 -> 240 | H108: 180 | I108: 120 | J108: 60 | K108: 0 | L108: 0 | M108: 0
C109: Short-Term Debt | E109: From End of Model, Leave until Done | F109: =F69 -> 100 | G109: =G69 -> 407.25 | H109: 651.249375 | I109: 631.6368563 | J109: 424.4859619 | K109: 206.6705408 | L109: 0 | M109: 0
C110: Equity | E110: From Above | F110: =F99 -> 600 | G110: =G99 -> 622.75 | H110: 668.750625 | I110: 738.3631437 | J110: 825.5140381 | K110: 918.3294592 | L110: 1017.129343 | M110: 1121.27193
D111: Total Liabilities and Capital | E111: Sum of Above | F111: =SUM(F108:F110) -> 1000 | G111: =SUM(G108:G110) -> 1270 | H111: 1500 | I111: 1490 | J111: 1310 | K111: 1125 | L111: 1017.129343 | M111: 1121.27193
B113: Balance Sheet Difference | E113: Assets = Capital | F113: =F105-F111 -> 0 | G113: =G105-G111 -> 0 | H113: 0 | I113: 0 | J113: 0 | K113: 0 | L113: 0 | M113: 0
B114: Balance Sheet Test | F114: =F113=0 -> TRUE | G114: =G113=0 -> TRUE | H114: TRUE | I114: TRUE | J114: TRUE | K114: TRUE | L114: TRUE | M114: TRUE
B115: Aggregate Test | F115: =AND(F114:M114) -> TRUE

Sheet Instructions
A1: Table of Contents
C3: Instructions
C6: This model contains fundamental calculations for creating a financial model. Some of the key concepts include:
C9: - Understand that the starting point for the model is the initial balance sheet
C10: - Separate the model into modules with Separate parts for fixed assets and for debt
C11: - The initial closing balance (in boxes) comes from the intial balance sheet
C12: - Use accounts with opening and closing balance
C13: - For the exercise, apply the positive number convention, meaning all of the numbers are positive
C14: - Make the depreciation expense and the interest on the opening balance, meaning all flows occur at the end of the year
C15: - Accounts in financial statements come from earlier modules or are sub-totals
C16: - The only exception is to use the MAX(net income x payout ratio,0) for dividends
C17: - Put the cash and short-term debt into a bucket and then split between debt and cash
C18: - Split the bucket into cash or investments using the MAX function -- MAX(bucket,0) for cash
C19: - Split the bucket into cash or investments using the MAX function -- MAX(-bucket,0) for debt
C20: - Create a common equtiy balance account
C21: - Link all of the balance sheet accouts
C22: - Test the balance sheet
C24: Other Notes:
C26: - Set up the sheet with SHIFT, CNTL ---> and SHIFT,ALT,----->
C27: - Use the combo box and the index command for scenarios

Sheet Exercise without Titles
A1: Table of Contents
A2: Year | F2: 0 | G2: 1 | H2: 2 | I2: 3 | J2: 4 | K2: 5 | L2: 6
A4: Assumptions
B5: Operating
C6: EBITDA | F6: 1 | G6: =INDEX(G7:G9,$F$6) -> 200 | H6: 300 | I6: 400 | J6: 450 | K6: 450 | L6: 450
D7: Base Case | G7: 200 | H7: 300 | I7: 400 | J7: 450 | K7: 450 | L7: 450
D8: Low Case | G8: 150 | H8: 200 | I8: 300 | J8: 300 | K8: 300 | L8: 300
D9: High Case | G9: 200 | H9: 350 | I9: 500 | J9: 650 | K9: 650 | L9: 650
C10: Depreciation Rate | G10: 0.1 | H10: 0.1 | I10: 0.1 | J10: 0.1 | K10: 0.1 | L10: 0.1
C11: Capital Expenditures | G11: 400 | H11: 400 | I11: 200 | J11: 50 | K11: 50 | L11: 50
B13: Financing
C14: Interest Income Rate | G14: 0.03 | H14: 0.035 | I14: 0.04 | J14: 0.04 | K14: 0.04 | L14: 0.04
C15: Interest Expense Rate | G15: 0.05 | H15: 0.055 | I15: 0.06 | J15: 0.06 | K15: 0.06 | L15: 0.06
C16: Minimum Cash Balance | G16: 100 | H16: 100 | I16: 100 | J16: 100 | K16: 100 | L16: 100
C17: Dividend Payout Ratio | G17: 0.5 | H17: 0.5 | I17: 0.5 | J17: 0.5 | K17: 0.5 | L17: 0.5
B19: Long-Term Debt
C20: Repayment | G20: 60 | H20: 60 | I20: 60 | J20: 60 | K20: 60
C21: Interest Rate on Long-term Debt | G21: 0.065 | H21: 0.065 | I21: 0.065 | J21: 0.065 | K21: 0.065
A23: Initial Balance Sheet
B24: Cash | F24: 100
B25: Plant Property and Equipment | F25: 1300
B26: Accumulated Depreciation | F26: 300
C27: Total Assets | F27: =F24+F25-F26 -> 1100
B29: Long-Term Debt | F29: 300
B30: Short-Term Debt | F30: 200
B31: Equity | F31: 600
C32: Total Liabilities and Capital | F32: =SUM(F29:F31) -> 1100

Sheet Exercise with Minimum
A1: Table of Contents
F2: Verification
E4: TRUE
A5: Year | F5: 0 | G5: 1 | H5: 2 | I5: 3 | J5: 4 | K5: 5 | L5: 6 | M5: 6
A8: Assumptions
B9: Operating
C10: EBITDA | F10: 1 | G10: =INDEX(G11:G13,$F$10) -> 200 | H10: 300 | I10: 400 | J10: 450 | K10: 450 | L10: 450 | M10: =INDEX(M11:M13,$F$10) -> 450
D11: Base Case | G11: 200 | H11: 300 | I11: 400 | J11: 450 | K11: 450 | L11: 450 | M11: 450
D12: Low Case | G12: 150 | H12: 200 | I12: 300 | J12: 300 | K12: 300 | L12: 300 | M12: 300
D13: High Case | G13: 200 | H13: 350 | I13: 500 | J13: 650 | K13: 650 | L13: 650 | M13: 650
C14: Depreciation Rate | G14: 0.1 | H14: 0.1 | I14: 0.1 | J14: 0.1 | K14: 0.1 | L14: 0.1 | M14: 0.1
C15: Capital Expenditures | G15: 400 | H15: 400 | I15: 200 | J15: 50 | K15: 50 | L15: 50 | M15: 50
C16: Minimum Cash as Percent of EBITDA | G16: 0.02 | H16: 0.02 | I16: 0.02 | J16: 0.02 | K16: 0.02 | L16: 0.02 | M16: 0.02
B18: Financing
C19: Interest Income Rate | G19: 0.03 | H19: 0.035 | I19: 0.04 | J19: 0.04 | K19: 0.04 | L19: 0.04 | M19: 0.04
C20: Interest Expense Rate | G20: 0.05 | H20: 0.055 | I20: 0.06 | J20: 0.06 | K20: 0.06 | L20: 0.06 | M20: 0.06
C21: Dividend Payout Ratio | G21: 0.5 | H21: 0.5 | I21: 0.5 | J21: 0.5 | K21: 0.5 | L21: 0.5 | M21: 0.5
B23: Long-Term Debt
C24: Scheduled Repayment | G24: 60 | H24: 60 | I24: 60 | J24: 60 | K24: 60
C25: Interest Rate on Long-term Debt | G25: 0.065 | H25: 0.065 | I25: 0.065 | J25: 0.065 | K25: 0.065
A27: Initial Balance Sheet
B28: Cash | F28: 0
B29: Plant Property and Equipment | F29: 1300
B30: Accumulated Depreciation | F30: 300
C31: Total Assets | F31: =F28+F29-F30 -> 1000
B33: Long-Term Debt | F33: 300
B34: Short-Term Debt | F34: 100
B35: Equity | F35: 600
C36: Total Liabilities and Capital | F36: =SUM(F33:F35) -> 1000
A38: Fixed Assets
B39: Plant Balance
C40: Opening Balance | E40: Opening = Prior Closing | G40: =F42 -> 1300 | H40: =G42 -> 1700 | I40: 2100 | J40: 2300 | K40: 2350 | L40: 2400 | M40: 2450
C41: Add: Capital Expenditure | E41: From Input | G41: =G15 -> 400 | H41: =H15 -> 400 | I41: 200 | J41: 50 | K41: 50 | L41: 50 | M41: 50
C42: Closing Balance | E42: Initial from B/S; Later Sum | F42: =F29 -> 1300 | G42: =SUM(G40:G41) -> 1700 | H42: =SUM(H40:H41) -> 2100 | I42: 2300 | J42: 2350 | K42: 2400 | L42: 2450 | M42: 2500
B44: Depreciation Rate | E44: From Input | G44: =G14 -> 0.1 | H44: =H14 -> 0.1 | I44: 0.1 | J44: 0.1 | K44: 0.1 | L44: 0.1 | M44: 0.1
B45: Depreciation Expense (Ending Balance) | E45: Closing x Depreciation Rate | G45: =G44*G40 -> 130 | H45: =H44*H40 -> 170 | I45: 210 | J45: 230 | K45: 235 | L45: 240 | M45: 245
B47: Accumulated Depreciation
C48: Opening Balance | G48: =F50 -> 300 | H48: =G50 -> 430 | I48: 600 | J48: 810 | K48: 1040 | L48: 1275 | M48: 1515
C49: Add: Depreciation Expense | G49: =G45 -> 130 | H49: =H45 -> 170 | I49: 210 | J49: 230 | K49: 235 | L49: 240 | M49: 245
C50: Closing Balance | F50: =F30 -> 300 | G50: =SUM(G48:G49) -> 430 | H50: =SUM(H48:H49) -> 600 | I50: 810 | J50: 1040 | K50: 1275 | L50: 1515 | M50: 1760
A52: Debt Analysis
B53: Debt Balance
C54: Opening Balance | E54: Opening = Prior Closing | G54: =F56 -> 300 | H54: =G56 -> 240 | I54: 180 | J54: 120 | K54: 60 | L54: 0 | M54: 0
C55: Less: Repayments | E55: From Input | G55: =-G24 -> -60 | H55: =-H24 -> -60 | I55: -60 | J55: -60 | K55: -60 | L55: 0 | M55: 0
C56: Closing Balance | E56: Initial from B/S; Later Sum | F56: =F33 -> 300 | G56: =SUM(G54:G55) -> 240 | H56: =SUM(H54:H55) -> 180 | I56: 120 | J56: 60 | K56: 0 | L56: 0 | M56: 0
B58: Interest Rate on Long-term Debt | E58: From Input | G58: =G25 -> 0.065 | H58: =H25 -> 0.065 | I58: 0.065 | J58: 0.065 | K58: 0.065 | L58: 0 | M58: 0
B59: Long-term Interest Expense | E59: Opening x Rate | G59: =G58*G54 -> 19.5 | H59: =H58*H54 -> 15.6 | I59: 11.7 | J59: 7.8 | K59: 3.9 | L59: 0 | M59: 0
A61: Cash LESS Short-term Debt Balance
B62: Opening Balance | E62: Prior Balance | G62: =F64 -> -100 | H62: =G64 -> -407.25 | I62: -651.289375 | J62: -631.7380562 | K62: -424.6701979 | L62: -206.9503039 | M62: 81.75118701
B63: Add: Net Cash Flow | E63: From Cash Flow Statement | G63: =G97 -> -307.25 | H63: =H97 -> -244.039375 | I63: 19.55131875 | J63: 207.0678583 | K63: 217.7198941 | L63: 288.7014909 | M63: 299.1350237
B64: Closing Balance | E64: Opeining + Cash Flow | F64: =F28-F34 -> -100 | G64: =SUM(G62:G63) -> -407.25 | H64: =SUM(H62:H63) -> -651.289375 | I64: -631.7380562 | J64: -424.6701979 | K64: -206.9503039 | L64: 81.75118701 | M64: 380.8862107
B66: Minimum Cash Balance
C67: EBITDA | G67: =G10 -> 200 | H67: =H10 -> 300 | I67: 400 | J67: 450 | K67: 450 | L67: 450 | M67: 450
C68: Cash Balance Percent | G68: =G16 -> 0.02 | H68: =H16 -> 0.02 | I68: 0.02 | J68: 0.02 | K68: 0.02 | L68: 0.02 | M68: 0.02
C69: Cash Balance Amount | G69: =G67*G68 -> 4 | H69: =H67*H68 -> 6 | I69: 8 | J69: 9 | K69: 9 | L69: 9 | M69: 9
B71: Cash Balance | E71: Max of Closing Balance or Zero | F71: =F28 -> 0 | G71: =MAX(G64,G69) -> 4 | H71: =MAX(H64,H69) -> 6 | I71: 8 | J71: 9 | K71: 9 | L71: 81.75118701 | M71: 380.8862107
B72: Interest Income Rate | G72: =G19 -> 0.03 | H72: =H19 -> 0.035 | I72: 0.04 | J72: 0.04 | K72: 0.04 | L72: 0.04 | M72: 0.04
B73: Interest Income | E73: Average of Cash x Rate | G73: =G72*F71 -> 0 | H73: =H72*G71 -> 0.14 | I73: 0.24 | J73: 0.32 | K73: 0.36 | L73: 0.36 | M73: 3.27004748
B75: Short-term Debt Balance | E75: Max of Neg Closing Balance or Zero | F75: =F34 -> 100 | G75: =MAX(-(G64-G69),0) -> 411.25 | H75: =MAX(-(H64-H69),0) -> 657.289375 | I75: 639.7380562 | J75: 433.6701979 | K75: 215.9503039 | L75: 0 | M75: 0
B76: Interest Expense Rate | G76: =G20 -> 0.05 | H76: =H20 -> 0.055 | I76: 0.06 | J76: 0.06 | K76: 0.06 | L76: 0.06 | M76: 0.06
B77: Short-term Interest Expense | E77: Average of Debt x Rate | G77: =G76*F75 -> 5 | H77: =H76*G75 -> 22.61875 | I77: 39.4373625 | J77: 38.38428337 | K77: 26.02021188 | L77: 12.95701823 | M77: 0
A80: Income Statement
B81: EBITDA | E81: From Above, Sensitivity | G81: =G67 -> 200 | H81: =H67 -> 300 | I81: 400 | J81: 450 | K81: 450 | L81: 450 | M81: 450
B82: Less: Depreciation | E82: Depreciation Analysis | G82: =G45 -> 130 | H82: =H45 -> 170 | I82: 210 | J82: 230 | K82: 235 | L82: 240 | M82: 245
B83: EBIT | E83: EBITDA - Depreciation | G83: =G81-G82 -> 70 | H83: =H81-H82 -> 130 | I83: 190 | J83: 220 | K83: 215 | L83: 210 | M83: 205
B84: Less: Short-term Interest | E84: End of Model, Leave until Done | G84: =G77 -> 5 | H84: =H77 -> 22.61875 | I84: 39.4373625 | J84: 38.38428337 | K84: 26.02021188 | L84: 12.95701823 | M84: 0
B85: Less: Long-term Interest | E85: Debt Analysis Above | G85: =G59 -> 19.5 | H85: =H59 -> 15.6 | I85: 11.7 | J85: 7.8 | K85: 3.9 | L85: 0 | M85: 0
B86: Plus: Interest Income | E86: End of Model, Leave until Done | G86: =G73 -> 0 | H86: =H73 -> 0.14 | I86: 0.24 | J86: 0.32 | K86: 0.36 | L86: 0.36 | M86: 3.27004748
C87: Net Income | E87: EBIT - Interest + Interest Income | G87: =G83-G84-G85+G86 -> 45.5 | H87: =H83-H84-H85+H86 -> 91.92125 | I87: 139.1026375 | J87: 174.1357166 | K87: 185.4397881 | L87: 197.4029818 | M87: 208.2700475
A89: Cash Flow Statement
B90: Net Income | E90: From Income Statement | G90: =G87 -> 45.5 | H90: =H87 -> 91.92125 | I90: 139.1026375 | J90: 174.1357166 | K90: 185.4397881 | L90: 197.4029818 | M90: 208.2700475
B91: Add: Depreciation Expense | E91: From Income Statement | G91: =G82 -> 130 | H91: =H82 -> 170 | I91: 210 | J91: 230 | K91: 235 | L91: 240 | M91: 245
B92: Cash from Operations | E92: Net Income + Depreciation | G92: =G90+G91 -> 175.5 | H92: =H90+H91 -> 261.92125 | I92: 349.1026375 | J92: 404.1357166 | K92: 420.4397881 | L92: 437.4029818 | M92: 453.2700475
B93: Less: Capital Expenditures | E93: From Above | G93: =G41 -> 400 | H93: =H41 -> 400 | I93: 200 | J93: 50 | K93: 50 | L93: 50 | M93: 50
B94: Cash Before Financing | E94: Operations - Capital Expenditures | G94: =G92-G93 -> -224.5 | H94: =H92-H93 -> -138.07875 | I94: 149.1026375 | J94: 354.1357166 | K94: 370.4397881 | L94: 387.4029818 | M94: 403.2700475
B95: Less: Debt Repayment | E95: From Above | G95: =G55 -> -60 | H95: =H55 -> -60 | I95: -60 | J95: -60 | K95: -60 | L95: 0 | M95: 0
B96: Less: Dividends | E96: Dividend Payout x Net Income | G96: =-MAX(G87*G21,0) -> -22.75 | H96: =-MAX(H87*H21,0) -> -45.960625 | I96: -69.55131875 | J96: -87.06785831 | K96: -92.71989406 | L96: -98.70149088 | M96: -104.1350237
C97: Net Cash Flow | E97: Cash Flow b/4 fin - Repayment - Div | G97: =G94+G95+G96 -> -307.25 | H97: =H94+H95+H96 -> -244.039375 | I97: 19.55131875 | J97: 207.0678583 | K97: 217.7198941 | L97: 288.7014909 | M97: 299.1350237
A100: Balance Sheet and Common Equity
B101: Common Equity Balance
C102: Openining Balance | G102: =F105 -> 600 | H102: =G105 -> 622.75 | I102: 668.710625 | J102: 738.2619438 | K102: 825.3298021 | L102: 918.0496961 | M102: 1016.751187
C103: Add: Net Income | G103: =G87 -> 45.5 | H103: =H87 -> 91.92125 | I103: 139.1026375 | J103: 174.1357166 | K103: 185.4397881 | L103: 197.4029818 | M103: 208.2700475
C104: Less: Dividends | G104: =G96 -> -22.75 | H104: =H96 -> -45.960625 | I104: -69.55131875 | J104: -87.06785831 | K104: -92.71989406 | L104: -98.70149088 | M104: -104.1350237
C105: Closing Balance | F105: =F35 -> 600 | G105: =SUM(G102:G104) -> 622.75 | H105: =SUM(H102:H104) -> 668.710625 | I105: 738.2619438 | J105: 825.3298021 | K105: 918.0496961 | L105: 1016.751187 | M105: 1120.886211
B107: Assets
C108: Cash | E108: From End of Model, Leave until Done | F108: =F71 -> 0 | G108: =G71 -> 4 | H108: 6 | I108: 8 | J108: 9 | K108: 9 | L108: 81.75118701 | M108: 380.8862107
C109: Plant Property and Equipment | E109: From Plant Balance | F109: =F42 -> 1300 | G109: =G42 -> 1700 | H109: 2100 | I109: 2300 | J109: 2350 | K109: 2400 | L109: 2450 | M109: 2500
C110: Less: Accumulated Depreciation | E110: Prior Balance + Depreciation | F110: =-F50 -> -300 | G110: =-G50 -> -430 | H110: -600 | I110: -810 | J110: -1040 | K110: -1275 | L110: -1515 | M110: -1760
D111: Total Assets | E111: Cash + Plant - Acc Dep | F111: =SUM(F108:F110) -> 1000 | G111: =SUM(G108:G110) -> 1274 | H111: 1506 | I111: 1498 | J111: 1319 | K111: 1134 | L111: 1016.751187 | M111: 1120.886211
B113: Liabilites and Equity
C114: Long-Term Debt | E114: From Debt Balance Above | F114: =F56 -> 300 | G114: =G56 -> 240 | H114: 180 | I114: 120 | J114: 60 | K114: 0 | L114: 0 | M114: 0
C115: Short-Term Debt | E115: From End of Model, Leave until Done | F115: =F75 -> 100 | G115: =G75 -> 411.25 | H115: 657.289375 | I115: 639.7380562 | J115: 433.6701979 | K115: 215.9503039 | L115: 0 | M115: 0
C116: Equity | E116: From Above | F116: =F105 -> 600 | G116: =G105 -> 622.75 | H116: 668.710625 | I116: 738.2619438 | J116: 825.3298021 | K116: 918.0496961 | L116: 1016.751187 | M116: 1120.886211
D117: Total Liabilities and Capital | E117: Sum of Above | F117: =SUM(F114:F116) -> 1000 | G117: =SUM(G114:G116) -> 1274 | H117: 1506 | I117: 1498 | J117: 1319 | K117: 1134 | L117: 1016.751187 | M117: 1120.886211
B119: Balance Sheet Difference | E119: Assets = Capital | F119: =F117-F111 -> 0 | G119: =G117-G111 -> 0 | H119: 0 | I119: 0 | J119: 0 | K119: 0 | L119: 0 | M119: 0
B120: Balance Sheet Test | F120: =F119=0 -> TRUE | G120: =G119=0 -> TRUE | H120: TRUE | I120: TRUE | J120: TRUE | K120: TRUE | L120: TRUE | M120: TRUE
B121: Aggregate Test | F121: =AND(F120:M120) -> TRUE
